fUST/lending_fUST_20240816
["ID","MTS","AMOUNT","RATE_DAILY","PERIOD"]
[335068494,1723804857327,933.51163948,0.00010081,2]
[335068495,1723804857504,1718.91670259,0.00010081,2]
[335068496,1723804867119,254.1434,9.556e-05,2]
[335068497,1723804868710,273.37336231,9.9e-05,2]
[335068498,1723804869441,1500.0,0.00010081,2]
[335068499,1723804873926,154.89489352,0.00010081,2]
[335068500,1723804874723,2711.75574306,0.00010081,2]
[335068501,1723804875222,1633.6335926,0.00010081,2]
[335068502,1723804876427,154.8064888,0.00010081,2]
[335068503,1723804882283,8841.788252,0.00010081,2]
[335068504,1723804884193,273.37336231,9.9e-05,2]
[335068505,1723804887784,569.37734184,0.00010081,2]
[335068506,1723804895017,196.5673226,0.00010081,2]
[335068507,1723804899554,273.37336231,9.9e-05,2]
[335068508,1723804902283,190.01321416,0.00010081,2]
[335068509,1723804911864,301.4340064,0.00010081,2]
[335068510,1723804912425,8841.788252,0.00010081,2]
[335068511,1723804913834,157.04728598,0.00010081,2]
[335068512,1723804915771,273.37336231,9.9e-05,2]
[335068513,1723804916222,457.46743484,0.00010081,2]
[335068514,1723804916710,155.21639712,0.00010081,2]
[335068515,1723804921532,320.05855474,0.00010081,2]
[335068516,1723804924067,209.90726283,0.00010081,2]
[335068517,1723804931210,273.37336231,9.9e-05,2]
[335068518,1723804933283,309.67712516,0.00010081,2]
[335068519,1723804947542,1438.50093818,0.00010081,2]
[335068520,1723804947756,273.37336231,9.9e-05,2]
[335068521,1723804964747,273.37336231,9.9e-05,2]
[335068522,1723804980082,273.37336231,9.9e-05,2]
[335068523,1723804982896,688.45853838,0.00010081,2]
[335068524,1723804984917,2140.80752137,0.00010081,2]
[335068525,1723804996006,273.37336231,9.9e-05,2]
[335068526,1723805010113,268.8350099,9.653e-05,2]
[335068527,1723805012059,273.37336231,9.9e-05,2]
[335068528,1723805028079,273.37336231,9.9e-05,2]
[335068530,1723805037703,288.15834108,0.00010081,2]
[335068531,1723805044671,273.37336231,9.9e-05,2]
[335068532,1723805048556,1123.9224255,9.679e-05,2]
[335068533,1723805060036,273.37336231,9.9e-05,2]
[335068534,1723805075926,273.37336231,9.9e-05,2]
[335068535,1723805091368,810.98237385,0.00010081,2]
[335068536,1723805091500,273.37336231,9.9e-05,2]
[335068537,1723805107996,273.37336231,9.9e-05,2]
[335068538,1723805122489,24900.0,9.644e-05,2]
[335068539,1723805225669,42399.32737911,0.00010081,2]
[335068540,1723805236151,-157.894736,0.00010329,2]
[335068541,1723805236175,-61.25500717,0.00010359,2]
[335068542,1723805341481,1765.95777024,0.00010081,2]
[335068543,1723805357269,-4072.86228315,0.00010118,2]
[335068544,1723805357293,-163.579425,0.00010217,2]
[335068545,1723805357316,-163.579425,0.00010251,2]
[335068546,1723805357338,-154.79103211,0.0001026,2]
[335068547,1723805357359,-154.79103211,0.0001026,2]
[335068548,1723805357382,-154.9126722,0.0001026,2]
[335068549,1723805362121,-163.579425,0.00010284,2]
[335068550,1723805362144,-163.579425,0.00010317,2]
[335068551,1723805362169,-163.579425,0.00010351,2]
[335068552,1723805362192,-163.579425,0.00010384,2]
[335068553,1723805362216,-163.579425,0.00010417,2]
[335068554,1723805362238,-163.579425,0.0001045,2]
[335068555,1723805362260,-163.579425,0.00010484,2]
[335068556,1723805362282,-163.579425,0.00010517,2]
[335068557,1723805362306,-163.579425,0.0001055,2]
[335068558,1723805362329,-163.579425,0.00010584,2]
[335068559,1723805362353,-163.579425,0.00010617,2]
[335068560,1723805362376,-163.579425,0.0001065,2]
[335068561,1723805362400,-163.579425,0.00010683,2]
[335068562,1723805362423,-163.579425,0.00010717,2]
[335068563,1723805362445,-163.579425,0.0001075,2]
[335068564,1723805362468,-31504.39989689,0.00010957,2]
[335068565,1723805368184,-2327.76677512,0.00010957,2]
[335068605,1723805438347,-933.51163948,0.00010739,2]
[335068606,1723805438358,-300.0,0.00010957,2]
[335068607,1723805438368,-300.0,0.00010957,2]
[335068609,1723805438377,-601.69102478,0.00010958,2]
[335068611,1723805438386,-1500.0,0.00010958,2]
[335068613,1723805438396,-404.31033644,0.00010958,2]
[335068615,1723805438405,-2711.75574306,0.00010958,2]
[335068617,1723805438415,-2165.54782924,0.00010958,2]
[335068619,1723805438425,-850.51877308,0.00010958,2]
[335068621,1723805438435,-7010.23526088,0.00011409,2]
[335068623,1723805438446,-569.37734184,0.00011409,2]
[335068625,1723805438459,-8841.788252,0.00011409,2]
[335068627,1723805438473,-3091.61067347,0.00011409,2]
[335068629,1723805438495,-2142.17325985,0.00011409,2]
[335068631,1723805438521,-811.12417981,0.00011409,2]
[335068634,1723805438548,-212.29731134,0.00011612,2]
[335068635,1723805438577,-223.44653164,0.00011621,2]
[335068637,1723805438607,-160.39523982,0.00011621,2]
[335068639,1723805438637,-190.01321416,0.00011621,2]
[335068640,1723805438658,-634.40038606,0.00011621,3]
[335068641,1723805438668,-154.79103211,0.00011621,2]
[335068642,1723805438678,-182.90208954,0.00011621,2]
[335068644,1723805438688,-188.4831986,0.00011621,2]
[335068646,1723805438698,-665.04001235,0.00011621,2]
[335068647,1723805438707,-300.42249537,0.00011621,2]
[335068648,1723805438718,-534.68598613,0.00011621,2]
[335068649,1723805438728,-154.79103211,0.00011712,2]
[335068650,1723805438738,-555.30111445,0.00011712,2]
[335068651,1723805438747,-256.23174061,0.00011712,2]
[335068652,1723805438947,-422.17784127,0.00011712,2]
[335068653,1723805438959,-728.43490027,0.00011712,2]
[335068654,1723805438972,-2127.39988805,0.00011712,2]
[335068655,1723805438981,-156.95829692,0.00011712,2]
[335068656,1723805438992,-154.79103211,0.00011712,2]
[335068657,1723805439001,-154.79103211,0.00011712,2]
[335068658,1723805439011,-157.04728598,0.00011712,2]
[335068659,1723805439021,-283.17581602,0.00011712,2]
[335068660,1723805439030,-196.75132172,0.00011712,2]
[335068661,1723805439040,-320.16989121,0.00011712,2]
[335068662,1723805439050,-154.79103211,0.00011712,2]
[335068663,1723805439059,-543.83358768,0.00011712,2]
[335068664,1723805439070,-154.79103211,0.00011712,2]
[335068665,1723805439080,-396.07639382,0.0001173,2]
[335068666,1723805439092,-2694.30694493,0.00011731,2]
[335068667,1723805439102,-154.79103211,0.00011731,2]
[335068668,1723805439111,-688.45853838,0.00011731,2]
[335068669,1723805439121,-420.0,0.00012041,2]
[335068670,1723805439131,-420.0,0.00012053,2]
[335068671,1723805439141,-5459.17994485,0.00012551,2]
[335068672,1723805439151,-1765.95777024,0.00012556,2]
[335068673,1723805439161,-309.56660753,0.00012556,2]
[335068674,1723805439171,-210.17147605,0.00012556,2]
[335068675,1723805439180,-309.5357034,0.00012556,2]
[335068676,1723805439190,-342.83520236,0.00012556,2]
[335068677,1723805439199,-20786.2804469,0.00012556,2]
[335068678,1723805439209,-203.19238024,0.00013,2]
[335068679,1723805439219,-158.04695104,0.00013025,2]
[335068680,1723805439228,-587.0,0.00013232,2]
[335068681,1723805439238,-587.0,0.00013258,2]
[335068682,1723805439247,-205.47944102,0.00013281,2]
[335068683,1723805439257,-13387.91042001,0.00013281,2]
[335068684,1723805439266,-301.4340064,0.00013597,2]
[335068685,1723805439276,-154.79103211,0.00013599,2]
[335068686,1723805439285,-150.112234,0.000136,2]
[335068687,1723805439295,-2661.82001993,0.00013687,2]
[335068688,1723805439308,-60114.65603347,0.00013687,2]
[335068689,1723805439318,-500.0,0.00013698,2]
[335068690,1723805439327,-500.0,0.00013698,2]
[335068691,1723805439337,-500.0,0.00013698,2]
[335068692,1723805439346,-397.43973646,0.00013698,2]
[335068693,1723805439356,-3000.0,0.00013699,2]
[335068694,1723805439365,-500.0,0.00013699,2]
[335068695,1723805439374,-500.0,0.00013699,2]
[335068696,1723805439384,-500.0,0.00013699,2]
[335068697,1723805439394,-500.0,0.00013699,2]
[335068698,1723805439403,-500.0,0.00013699,2]
[335068699,1723805439413,-500.0,0.00013699,2]
[335068700,1723805439423,-500.0,0.00013699,2]
[335068701,1723805439432,-500.0,0.00013699,2]
[335068702,1723805439443,-500.0,0.00013699,2]
[335068703,1723805439453,-500.0,0.00013699,2]
[335068704,1723805439463,-500.0,0.00013699,2]
[335068705,1723805439478,-500.0,0.00013699,2]
[335068706,1723805439488,-500.0,0.00013699,2]
[335068707,1723805439498,-500.0,0.00013699,2]
[335068708,1723805439508,-500.0,0.00013699,2]
[335068709,1723805439517,-500.0,0.00013699,2]
[335068710,1723805439527,-500.0,0.00013699,2]
[335068711,1723805439537,-230.69456625,0.00013699,2]
[335068712,1723805439546,-500.0,0.00013699,2]
[335068713,1723805439556,-500.0,0.00013699,2]
[335068714,1723805439565,-500.0,0.00013699,2]
[335068715,1723805439575,-500.0,0.00013699,2]
[335068716,1723805439585,-500.0,0.00013699,2]
[335068717,1723805439594,-500.0,0.00013699,2]
[335068718,1723805439603,-500.0,0.00013699,2]
[335068719,1723805439612,-500.0,0.00013699,2]
[335068720,1723805439622,-500.0,0.00013699,2]
[335068721,1723805439632,-154.84433196,0.00014,2]
[335068722,1723805439641,-494.54531599,0.00014245,2]
[335068723,1723805439651,-164.145231,0.00014247,2]
[335068724,1723805439661,-168.311052,0.00014247,2]
[335068725,1723805439671,-823.0,0.00014584,2]
[335068726,1723805439680,-952.97302419,0.00015,2]
[335068727,1723805439690,-2192.2379403,0.00015,2]
[335068728,1723805439700,-154.88006811,0.00015,2]
[335068729,1723805439710,-155.00357971,0.00015,2]
[335068730,1723805439721,-782.12449386,0.00015,2]
[335068731,1723805439731,-1110.39279741,0.00015,2]
[335068732,1723805439741,-199.38098027,0.00015,2]
[335068733,1723805439751,-154.85543373,0.00016,2]
[335068734,1723805439760,-1152.0,0.00016042,2]
[335068735,1723805439770,-576.46551724,0.00016438,2]
[335068736,1723805439780,-576.46551724,0.00016438,2]
[335068738,1723805439789,-576.46551724,0.00016438,2]
[335068739,1723805439800,-576.46551724,0.00016438,2]
[335068740,1723805439809,-576.46551724,0.00016438,2]
[335068741,1723805439819,-576.46551724,0.00016438,2]
[335068742,1723805439828,-576.46551724,0.00016438,2]
[335068743,1723805439838,-576.46551724,0.00016438,2]
[335068744,1723805439848,-576.46551724,0.00016438,2]
[335068745,1723805439857,-576.46551724,0.00016438,2]
[335068746,1723805439867,-576.46551724,0.00016438,2]
[335068749,1723805439878,-576.46551724,0.00016438,2]
[335068751,1723805439894,-576.46551724,0.00016438,2]
[335068752,1723805439904,-576.46551724,0.00016438,2]
[335068753,1723805439913,-576.46551724,0.00016438,2]
[335068754,1723805439923,-576.46551724,0.00016438,2]
[335068755,1723805439933,-576.46551724,0.00016438,2]
[335068756,1723805439942,-576.46551724,0.00016438,2]
[335068757,1723805439952,-576.46551724,0.00016438,2]
[335068758,1723805439964,-576.46551724,0.00016438,2]
[335068759,1723805439980,-576.46551724,0.00016438,2]
[335068760,1723805439990,-576.46551724,0.00016438,2]
[335068761,1723805439999,-576.46551724,0.00016438,2]
[335068762,1723805440009,-576.46551724,0.00016438,2]
[335068763,1723805440018,-576.46551724,0.00016438,2]
[335068764,1723805440028,-576.46551724,0.00016438,2]
[335068765,1723805440038,-576.46551724,0.00016438,2]
[335068766,1723805440048,-576.46551724,0.00016438,2]
[335068767,1723805440057,-576.46551724,0.00016438,2]
[335068769,1723805440066,-277.52010074,0.000165,2]
[335068770,1723805440076,-1613.0,0.00017646,2]
[335068772,1723805440086,-62776.4760534,0.00018667,2]
[335068774,1723805440096,-212.29731134,0.00019078,2]
[335068775,1723805440105,-251.0,0.00019178,2]
[335068776,1723805440117,-2154.0,0.00019411,2]
[335068777,1723805440126,-1120.28431501,0.0002,2]
[335068778,1723805440136,-4924.02773267,0.0002,2]
[335068779,1723805440146,-5476.26569239,0.0002,2]
[335068780,1723805440156,-258.55298155,0.0002,2]
[335068781,1723805440166,-381.79479471,0.0002,2]
[335068782,1723805440175,-178.51995397,0.0002,2]
[335068784,1723805440185,-156.57509394,0.0002,2]
[335068785,1723805440194,-705.45595223,0.000203,2]
[335068786,1723805440204,-164.145231,0.00023014,2]
[335068788,1723805440213,-475.93383457,0.00026323,2]
[335068789,1723805440224,-465.54669173,0.0002764,2]
[335068790,1723805440234,-9435.70289252,0.00029,2]
[335068792,1723805440243,-4719.30718815,0.00029817,2]
[335068794,1723805440252,-3000.0,0.000299,2]
[335068795,1723805440262,-3000.0,0.0002991,2]
[335068796,1723805440272,-3000.0,0.0002992,2]
[335068797,1723805440281,-3000.0,0.0002993,2]
[335068799,1723805440291,-3000.0,0.0002994,2]
[335068800,1723805440300,-62776.4760534,0.0002994,4]
[335068801,1723805440309,-3000.0,0.0002995,2]
[335068802,1723805440319,-3000.0,0.0002996,2]
[335068803,1723805440328,-3000.0,0.0002997,2]
[335068804,1723805440338,-3000.0,0.0002998,2]
[335068805,1723805440348,-3000.0,0.0002999,2]
[335068806,1723805440357,-3000.0,0.0003,2]
[335068807,1723805440366,-3000.0,0.0003001,2]
[335068808,1723805440375,-3000.0,0.0003002,2]
[335068809,1723805440386,-3000.0,0.0003003,2]
[335068810,1723805440397,-3000.0,0.0003004,2]
[335068811,1723805440408,-3000.0,0.0003005,2]
[335068812,1723805440419,-3000.0,0.0003006,2]
[335068814,1723805440429,-3000.0,0.0003007,2]
[335068816,1723805440439,-3000.0,0.0003008,2]
[335068818,1723805440450,-3000.0,0.0003009,2]
[335068820,1723805440460,-3000.0,0.000301,2]
[335068822,1723805440474,-62776.4760534,0.000301,4]
[335068823,1723805440483,-3000.0,0.0003011,2]
[335068824,1723805440493,-3000.0,0.0003012,2]
[335068825,1723805440503,-4719.30718815,0.00030122,2]
[335068826,1723805440513,-3000.0,0.0003013,3]
[335068827,1723805440523,-3000.0,0.0003014,3]
[335068828,1723805440533,-3000.0,0.0003015,3]
[335068829,1723805440543,-3000.0,0.0003016,3]
[335068830,1723805440553,-3000.0,0.0003017,3]
[335068831,1723805440563,-3000.0,0.0003018,3]
[335068832,1723805440573,-3000.0,0.0003019,3]
[335068833,1723805440583,-3467.440956,0.000302,3]
[335068834,1723805440594,-4719.30718815,0.00030257,2]
[335068835,1723805440605,-4719.30718815,0.00030422,2]
[335068836,1723805440615,-62776.4760534,0.00030781,4]
[335068837,1723805440626,-4719.30718816,0.00030948,2]
[335068838,1723805440635,-1001.557039,0.000312,6]
[335068839,1723805440645,-2000.0,0.00031415,2]
[335068840,1723805440655,-858.04302929,0.00031422,2]
[335068841,1723805440665,-7547.49433788,0.00031443,5]
[335068842,1723805440675,-500.0,0.00031532,2]
[335068843,1723805440685,-505.12022929,0.00031532,2]
[335068844,1723805440695,-149504.27821878,0.00031552,30]
[335068845,1723805440705,-6873.679999,0.00031552,120]
[335068846,1723805440715,-6002.61367694,0.00031552,30]
[335068847,1723805440739,-160.56535763,0.00031552,30]
[335068848,1723805440748,-240.82074905,0.00031552,120]
[335068849,1723805440757,-12364.20008234,0.00031552,30]
[335068850,1723805440767,-259.18894282,0.00031552,2]
[335068851,1723805440778,-150.0,0.00031552,14]
[335068852,1723805440788,-235.28,0.00031552,14]
[335068853,1723805440799,-762.84,0.000316,7]
[335068854,1723805440809,-4005.86,0.000316,14]
[335068855,1723805440820,-22883.55,0.000316,14]
[335068856,1723805440830,-164.145231,0.00031781,2]
[335068857,1723805440841,-522.56368426,0.00032,30]
[335068858,1723805440850,-205305.92411649,0.000325,60]
[335068859,1723805440860,-150.0,0.00033142,2]
[335068860,1723805440870,-521.0,0.00033142,2]
[335068861,1723805440883,-1413.0,0.00033142,2]
[335068862,1723805440893,-858.04302922,0.00033897,2]
[335068863,1723805440902,-200.0,0.0003555,5]
[335068864,1723805440912,-162.8626633,0.00035616,120]
[335068865,1723805440923,-150.0,0.00036142,2]
[335068866,1723805440933,-520.0,0.00036142,2]
[335068867,1723805440943,-1413.0,0.00036142,2]
[335068868,1723805440953,-858.04302922,0.00036373,2]
[335068869,1723805440964,-400.0,0.0003692,5]
[335068870,1723805440975,-3202.237,0.00037277,7]
[335068871,1723805440986,-2000.0,0.00038356,59]
[335068872,1723805440997,-1000.0,0.00038356,60]
[335068873,1723805441006,-762.84,0.000384,30]
[335068874,1723805441016,-4005.86,0.000384,14]
[335068875,1723805441026,-858.04302922,0.00038848,2]
[335068876,1723805441036,-600.0,0.00038923,5]
[335068877,1723805441047,-1413.0,0.00039142,2]
[335068878,1723805441057,-22883.55,0.000395,14]
[335068879,1723805441067,-164.145231,0.00040548,2]
[335068880,1723805441077,-3959.18,0.00041095,60]
[335068881,1723805441087,-3959.18,0.00041095,60]
[335068882,1723805441097,-3959.18,0.00041095,60]
[335068883,1723805441107,-3959.18,0.00041095,60]
[335068884,1723805441117,-3959.18,0.00041095,60]
[335068885,1723805441127,-3959.18,0.00041095,60]
[335068886,1723805441137,-3959.18,0.00041095,60]
[335068887,1723805441147,-3959.18,0.00041095,60]
[335068888,1723805441158,-3959.18,0.00041095,60]
[335068889,1723805441167,-151.0,0.00041095,14]
[335068890,1723805441178,-153.525346,0.00041095,14]
[335068891,1723805441188,-151.0,0.00041095,14]
[335068892,1723805441197,-151.0,0.00041095,14]
[335068893,1723805441207,-151.0,0.00041095,14]
[335068894,1723805441216,-151.0,0.00041095,14]
[335068895,1723805441228,-800.0,0.00041264,10]
[335068896,1723805441237,-858.04302922,0.00041323,2]
[335068897,1723805441248,-3959.18,0.00041642,60]
[335068898,1723805441258,-37027.87724802,0.00041643,120]
[335068899,1723805441267,-500.0,0.00042424,30]
[335068900,1723805441276,-500.0,0.00042424,30]
[335068901,1723805441286,-2535.86068,0.00042717,30]
[335068902,1723805441295,-2181.644129,0.00042717,30]
[335068903,1723805441305,-169.259371,0.00042717,30]
[335068904,1723805441315,-500.0,0.0004274,2]
[335068905,1723805441324,-600.0,0.00042871,2]
[335068906,1723805441334,-3959.18,0.00042992,60]
[335068907,1723805441344,-10189.857686,0.00043,22]
[335068908,1723805441354,-2535.86068,0.00043251,30]
[335068909,1723805441363,-2181.644129,0.00043251,30]
[335068910,1723805441372,-3959.18,0.00043276,60]
[335068911,1723805441382,-600.0,0.00043317,2]
[335068912,1723805441391,-2000.0,0.000435,120]
[335068913,1723805441400,-2000.0,0.0004355,120]
[335068914,1723805441409,-1773.51,0.000436,120]
[335068915,1723805441419,-2000.0,0.000436,120]
[335068916,1723805441428,-2000.0,0.0004361,120]
[335068917,1723805441438,-2000.0,0.0004362,120]
[335068918,1723805441447,-2000.0,0.0004362,120]
[335068919,1723805441457,-2000.0,0.0004363,120]
[335068920,1723805441466,-2000.0,0.0004363,120]
[335068921,1723805441477,-2000.0,0.0004364,120]
[335068922,1723805441487,-2000.0,0.0004365,120]
[335068923,1723805441497,-2000.0,0.0004365,120]
[335068924,1723805441506,-2000.0,0.0004365,120]
[335068925,1723805441517,-2000.0,0.0004367,120]
[335068926,1723805441526,-2000.0,0.0004367,120]
[335068927,1723805441535,-2000.0,0.0004368,120]
[335068928,1723805441545,-2000.0,0.0004369,120]
[335068929,1723805441555,-762.84,0.000437,30]
[335068930,1723805441564,-4005.86,0.000437,14]
[335068931,1723805441573,-2000.0,0.000437,120]
[335068932,1723805441583,-2000.0,0.000437,120]
[335068933,1723805441593,-2000.0,0.0004371,120]
[335068934,1723805441602,-2000.0,0.0004373,120]
[335068935,1723805441611,-2000.0,0.0004374,120]
[335068936,1723805441620,-2000.0,0.0004375,120]
[335068937,1723805441629,-2000.0,0.0004375,120]
[335068938,1723805441638,-2000.0,0.0004375,120]
[335068939,1723805441648,-2000.0,0.0004376,120]
[335068940,1723805441657,-961.63304213,0.00043764,2]
[335068941,1723805441667,-2000.0,0.0004378,120]
[335068942,1723805441677,-2535.86068,0.00043785,30]
[335068943,1723805441686,-2181.644129,0.00043785,30]
[335068944,1723805441696,-169.259371,0.00043785,30]
[335068945,1723805441707,-2000.0,0.0004379,120]
[335068946,1723805441717,-858.04302922,0.00043799,2]
[335068947,1723805441727,-2000.0,0.000438,120]
[335068948,1723805441736,-2000.0,0.000438,120]
[335068949,1723805441748,-2000.0,0.0004381,120]
[335068950,1723805441757,-2000.0,0.00043815,120]
[335068951,1723805441767,-2000.0,0.00043818,120]
[335068952,1723805441777,-193.353333,0.00043818,120]
[335068953,1723805441786,-193.353333,0.00043818,120]
[335068954,1723805441795,-2000.0,0.0004382,120]
[335068955,1723805441805,-2000.0,0.0004382,120]
[335068956,1723805441814,-3959.18,0.00043824,60]
[335068957,1723805441824,-3959.18,0.00043824,60]
[335068958,1723805441833,-3959.18,0.00043824,60]
[335068959,1723805441843,-3959.18,0.00043824,60]
[335068960,1723805441852,-3959.18,0.00043824,60]
[335068961,1723805441862,-2000.0,0.00043825,120]
[335068962,1723805441984,-832.32200091,0.00043834,61]
[335068963,1723805441994,-3959.18,0.00043834,60]
[335068964,1723805442003,-3959.18,0.00043834,60]
[335068965,1723805442013,-3959.18,0.00043834,60]
[335068966,1723805442022,-3959.18,0.00043834,60]
[335068967,1723805442031,-3959.18,0.00043834,60]
[335068968,1723805442040,-3959.18,0.00043834,60]
[335068969,1723805442050,-3959.23717532,0.00043834,60]
[335068970,1723805442059,-92823.25128518,0.00043834,21]
[335068971,1723805442068,-500.0,0.00043835,120]
[335068972,1723805442078,-500.35326284,0.00043835,120]
[335068973,1723805442087,-500.0,0.00043835,120]
[335068974,1723805442096,-504.49386152,0.00043835,120]
[335068975,1723805442105,-504.84960246,0.00043835,120]
[335068976,1723805442115,-500.0,0.00043835,120]
[335068977,1723805442124,-500.0,0.00043835,120]
[335068978,1723805442134,-500.0,0.00043835,120]
[335068979,1723805442143,-500.90960856,0.00043835,120]
[335068980,1723805442152,-503.48486232,0.00043835,120]
[335068981,1723805442162,-201.12130316,0.00043835,120]
[335068982,1723805442171,-500.0,0.00043835,120]
[335068983,1723805442180,-500.0,0.00043835,120]
[335068984,1723805442190,-500.0,0.00043835,120]
[335068985,1723805442199,-503.26745851,0.00043835,120]
[335068986,1723805442209,-500.0,0.00043835,120]
[335068987,1723805442218,-500.30633317,0.00043835,120]
[335068988,1723805442229,-500.0,0.00043835,120]
[335068989,1723805442238,-500.0,0.00043835,120]
[335068990,1723805442248,-500.0,0.00043835,120]
[335068991,1723805442257,-500.0,0.00043835,120]
[335068992,1723805442266,-500.0,0.00043835,120]
[335068993,1723805442276,-500.0,0.00043835,120]
[335068994,1723805442285,-500.0,0.00043835,120]
[335068995,1723805442294,-500.0,0.00043835,120]
[335068996,1723805442304,-500.0,0.00043835,120]
[335068997,1723805442313,-500.0,0.00043835,120]
[335068998,1723805442323,-500.0,0.00043835,120]
[335068999,1723805442332,-500.0,0.00043835,120]
[335069000,1723805442341,-500.0,0.00043835,120]
[335069001,1723805442351,-500.0,0.00043835,120]
[335069002,1723805442360,-500.0,0.00043835,7]
[335069003,1723805442369,-500.0,0.00043835,120]
[335069004,1723805442379,-500.0,0.00043835,120]
[335069005,1723805442388,-500.0,0.00043835,120]
[335069006,1723805442397,-500.0,0.00043835,120]
[335069007,1723805442406,-500.0,0.00043835,120]
[335069008,1723805442415,-500.0,0.00043835,120]
[335069009,1723805442424,-500.0,0.00043835,120]
[335069010,1723805442434,-500.0,0.00043835,120]
[335069011,1723805442443,-500.0,0.00043835,120]
[335069012,1723805442452,-503.96346188,0.00043835,120]
[335069013,1723805442462,-523.13109607,0.00043835,120]
[335069014,1723805442472,-500.0,0.00043835,120]
[335069015,1723805442481,-500.0,0.00043835,120]
[335069016,1723805442491,-684.14,0.00043835,120]
[335069017,1723805442501,-500.0,0.00043835,30]
[335069018,1723805442510,-500.0,0.00043835,120]
[335069019,1723805442520,-500.0,0.00043835,120]
[335069020,1723805442529,-506.31727517,0.00043835,120]
[335069021,1723805442538,-500.0,0.00043835,120]
[335069022,1723805442549,-500.0,0.00043835,120]
[335069023,1723805442559,-500.0,0.00043835,120]
[335069024,1723805442568,-500.0,0.00043835,120]
[335069025,1723805442578,-602.31,0.00043835,120]
[335069026,1723805442587,-500.0,0.00043835,120]
[335069027,1723805442597,-500.0,0.00043835,120]
[335069028,1723805442606,-500.0,0.00043835,120]
[335069029,1723805442616,-500.0,0.00043835,120]
[335069030,1723805442625,-500.0,0.00043835,120]
[335069032,1723805442635,-500.0,0.00043835,120]
[335069033,1723805442644,-500.0,0.00043835,120]
[335069034,1723805442653,-599.75,0.00043835,120]
[335069035,1723805442663,-500.0,0.00043835,120]
[335069036,1723805442672,-151.0,0.00043835,120]
[335069037,1723805442681,-462.92434819,0.00043835,120]
[335069038,1723805442690,-500.0,0.00043835,120]
[335069039,1723805442700,-500.0,0.00043835,120]
[335069040,1723805442709,-500.0,0.00043835,120]
[335069041,1723805442720,-500.81841676,0.00043835,120]
[335069042,1723805442729,-512.46722851,0.00043835,120]
[335069043,1723805442738,-500.0,0.00043835,120]
[335069044,1723805442747,-504.79179776,0.00043835,120]
[335069045,1723805442756,-500.0,0.00043835,120]
[335069046,1723805442765,-500.0,0.00043835,120]
[335069047,1723805442775,-500.0,0.00043835,10]
[335069048,1723805442784,-500.98686136,0.00043835,120]
[335069049,1723805442794,-500.0,0.00043835,120]
[335069050,1723805442803,-629.89,0.00043835,120]
[335069051,1723805442813,-500.0,0.00043835,120]
[335069052,1723805442822,-500.0,0.00043835,120]
[335069053,1723805442832,-151.0,0.00043835,120]
[335069054,1723805442841,-199.929493,0.00043835,120]
[335069055,1723805442851,-500.6476784,0.00043835,120]
[335069056,1723805442860,-500.0,0.00043835,120]
[335069057,1723805442870,-783.75,0.00043835,120]
[335069058,1723805442882,-546.74420096,0.00043835,120]
[335069059,1723805442892,-151.0,0.00043835,120]
[335069060,1723805442901,-151.0,0.00043835,120]
[335069061,1723805442910,-151.0,0.00043835,30]
[335069062,1723805442920,-500.0,0.00043835,120]
[335069063,1723805442930,-616.64393771,0.00043835,2]
[335069064,1723805442940,-500.0,0.00043835,120]
[335069065,1723805442949,-503.18271109,0.00043835,120]
[335069066,1723805442962,-542.93,0.00043835,120]
[335069067,1723805442971,-500.0,0.00043835,2]
[335069068,1723805442982,-206.16451574,0.00043835,120]
[335069070,1723805442991,-500.0,0.00043835,120]